lending/lending_fUSD_20250425
["ID","MTS","AMOUNT","RATE_DAILY","PERIOD"]
[358924677,1745545875521,-500.0,0.00049589,30]
[358924678,1745545875572,-500.0,0.00049589,30]
[358924679,1745545875623,-500.0,0.00049589,30]
[358924680,1745545875679,-500.0,0.00049589,30]
[358924681,1745545875734,-500.0,0.00049589,30]
[358924682,1745545875789,-982.6,0.00049589,30]
[358924683,1745545875843,-730.82,0.00049589,30]
[358924684,1745545875896,-1137.61,0.00049589,30]
[358924685,1745545875950,-500.0,0.00049589,30]
[358924686,1745545876005,-1311.98,0.00049589,30]
[358924687,1745545876059,-500.0,0.00049589,30]
[358924688,1745545876112,-500.0,0.00049589,30]
[358924689,1745545876166,-500.0,0.00049589,30]
[358924690,1745545876221,-500.0,0.00049589,30]
[358924691,1745545876273,-500.0,0.00049589,30]
[358924692,1745545876326,-157.044166,0.00049589,120]
[358924693,1745545876379,-1055.72,0.00049589,30]
[358924694,1745545876434,-500.0,0.00049589,30]
[358924695,1745545876487,-500.0,0.00049589,30]
[358924696,1745545876539,-500.0,0.00049589,30]
[358924697,1745545876592,-1396.8,0.00049589,30]
[358924698,1745545876644,-170.915252,0.00049589,120]
[358924699,1745545876698,-503.83,0.00049589,30]
[358924700,1745545876752,-500.0,0.00049589,30]
[358924701,1745545876803,-500.0,0.00049589,30]
[358924702,1745545876854,-871.91,0.00049589,30]
[358924703,1745545876903,-500.0,0.00049589,30]
[358924704,1745545876953,-500.0,0.00049589,30]
[358924705,1745545877003,-273.44791,0.00049589,120]
[358924706,1745545877053,-1269.73,0.00049589,30]
[358924707,1745545877104,-500.0,0.00049589,30]
[358924708,1745545877157,-1618.3,0.00049589,30]
[358924709,1745545877212,-500.0,0.00049589,30]
[358924710,1745545877266,-1638.07,0.00049589,30]
[358924711,1745545877318,-703.28,0.00049589,30]
[358924712,1745545877367,-1425.46,0.00049589,30]
[358924713,1745545877416,-638.66,0.00049589,30]
[358924714,1745545877466,-1729.94,0.00049589,30]
[358924715,1745545877513,-500.0,0.00049589,30]
[358924716,1745545877561,-500.0,0.00049589,30]
[358924717,1745545877610,-561.61,0.00049589,30]
[358924718,1745545877660,-950.46,0.00049589,30]
[358924719,1745545877712,-500.0,0.00049589,30]
[358924720,1745545877765,-1212.18,0.00049589,30]
[358924721,1745545877816,-1343.3,0.00049589,30]
[358924722,1745545877867,-571.58,0.00049589,30]
[358924723,1745545877918,-855.98,0.00049589,30]
[358924724,1745545877971,-2120.78,0.00049589,30]
[358924725,1745545878022,-603.73,0.00049589,30]
[358924726,1745545878075,-500.0,0.00049589,30]
[358924727,1745545878132,-500.0,0.00049589,30]
[358924728,1745545878186,-1895.22,0.00049589,30]
[358924729,1745545878239,-500.0,0.00049589,30]
[358924730,1745545878292,-1806.09,0.00049589,30]
[358924731,1745545878343,-500.0,0.00049589,30]
[358924732,1745545878396,-530.66,0.00049589,30]
[358924733,1745545878449,-500.0,0.00049589,30]
[358924734,1745545878506,-1185.38,0.00049589,30]
[358924735,1745545878557,-500.0,0.00049589,30]
[358924736,1745545878609,-4344.84,0.00049589,30]
[358924737,1745545878665,-500.0,0.00049589,30]
[358924738,1745545878719,-1235.46,0.00049589,30]
[358924739,1745545878772,-500.0,0.00049589,30]
[358924740,1745545878825,-500.0,0.00049589,30]
[358924741,1745545878878,-718.37,0.00049589,30]
[358924742,1745545878930,-424.96075161,0.00049589,30]
[358924743,1745545878982,-681.27,0.00049589,30]
[358924744,1745545879034,-547.91,0.00049589,30]
[358924745,1745545879088,-1064.4,0.00049589,30]
[358924746,1745545879143,-536.61,0.00049589,30]
[358924747,1745545879197,-300.0,0.00049589,30]
[358924748,1745545879249,-959.99,0.00049589,30]
[358924749,1745545879300,-956.25,0.00049589,30]
[358924750,1745545879354,-606.43,0.00049589,30]
[358924751,1745545879408,-4110.61,0.00049589,30]
[358924752,1745545879461,-755.51,0.00049589,30]
[358924753,1745545879520,-500.0,0.00049589,30]
[358924754,1745545879573,-1699.47,0.00049589,30]
[358924755,1745545879625,-751.49,0.00049589,30]
[358924756,1745545879678,-557.16,0.00049589,30]
[358924757,1745545879731,-500.0,0.00049589,30]
[358924758,1745545879782,-2518.36,0.00049589,30]
[358924759,1745545879833,-523.81433727,0.00049589,30]
[358924760,1745545879886,-1672.29,0.00049589,30]
[358924761,1745545879939,-500.0,0.00049589,30]
[358924762,1745545879991,-1749.57,0.00049589,30]
[358924763,1745545880043,-500.0,0.00049589,30]
[358924764,1745545880099,-637.35,0.00049589,30]
[358924765,1745545880154,-500.0,0.00049589,30]
[358924766,1745545880212,-500.0,0.00049589,30]
[358924767,1745545880267,-1031.46,0.00049589,30]
[358924768,1745545880321,-1886.1,0.00049589,30]
[358924769,1745545880376,-1188.42,0.00049589,30]
[358924770,1745545880722,-500.0,0.00049589,30]
[358924771,1745545880774,-565.55,0.00049589,30]
[358924772,1745545880827,-1760.17,0.00049589,30]
[358924773,1745545880880,-500.0,0.00049589,30]
[358924774,1745545880932,-500.0,0.00049589,30]
[358924775,1745545880990,-583.6,0.00049589,30]
[358924776,1745545881044,-1331.75,0.00049589,30]
[358924777,1745545881099,-259.7,0.00049589,30]
[358924778,1745545881151,-1291.79,0.00049589,30]
[358924779,1745545881204,-500.0,0.00049589,30]
[358924780,1745545881256,-1098.22,0.00049589,30]
[358924781,1745545881312,-7163.15,0.00049589,30]
[358924782,1745545881366,-887.54,0.00049589,30]
[358924783,1745545881420,-1248.48,0.00049589,30]
[358924784,1745545881475,-500.0,0.00049589,30]
[358924785,1745545881531,-1651.06,0.00049589,30]
[358924786,1745545881585,-508.52,0.00049589,30]
[358924787,1745545881642,-2239.84,0.00049589,30]
[358924788,1745545881698,-864.33,0.00049589,30]
[358924789,1745545881756,-505.78,0.00049589,30]
[358924790,1745545881813,-632.89,0.00049589,30]
[358924791,1745545881868,-1001.68,0.00049589,30]
[358924792,1745545881923,-500.0,0.00049589,30]
[358924793,1745545881986,-1483.77,0.00049589,30]
[358924794,1745545882042,-500.0,0.00049589,30]
[358924795,1745545882103,-1236.74,0.00049589,30]
[358924796,1745545882164,-500.0,0.00049589,30]
[358924797,1745545882222,-547.04,0.00049589,30]
[358924798,1745545882278,-500.0,0.00049589,30]
[358924799,1745545882333,-500.0,0.00049589,120]
[358924800,1745545882390,-551.27,0.00049589,30]
[358924801,1745545882447,-782.79,0.00049589,30]
[358924802,1745545882501,-500.0,0.00049589,30]
[358924803,1745545882555,-500.0,0.00049589,30]
[358924804,1745545882608,-500.0,0.00049589,30]
[358924805,1745545882661,-500.0,0.00049589,30]
[358924806,1745545882711,-1416.53,0.00049589,30]
[358924807,1745545882763,-500.0,0.00049589,30]
[358924808,1745545882815,-894.51,0.00049589,30]
[358924809,1745545882867,-500.0,0.00049589,30]
[358924810,1745545882919,-500.0,0.00049589,30]
[358924811,1745545882970,-1380.06,0.00049589,30]
[358924812,1745545883022,-500.0,0.00049589,30]
[358924813,1745545883079,-1109.29,0.00049589,30]
[358924814,1745545883134,-982.48,0.00049589,30]
[358924815,1745545883188,-1800.8,0.00049589,30]
[358924816,1745545883240,-612.25,0.00049589,30]
[358924817,1745545883293,-884.99,0.00049589,30]
[358924818,1745545883344,-695.17,0.00049589,30]
[358924819,1745545883394,-665.85,0.00049589,30]
[358924820,1745545883445,-1088.74,0.00049589,30]
[358924821,1745545883496,-734.7,0.00049589,30]
[358924822,1745545883549,-1916.97,0.00049589,30]
[358924823,1745545883600,-596.84,0.00049589,30]
[358924824,1745545883650,-509.35,0.00049589,30]
[358924825,1745545883703,-500.0,0.00049589,30]
[358924826,1745545883757,-2215.94,0.00049589,30]
[358924827,1745545883808,-556.38,0.00049589,30]
[358924828,1745545883860,-500.0,0.00049589,30]
[358924829,1745545883910,-697.76,0.00049589,30]
[358924830,1745545883961,-4287.81,0.00049589,30]
[358924831,1745545884013,-682.59,0.00049589,30]
[358924832,1745545884066,-737.75,0.00049589,30]
[358924833,1745545884118,-515.03,0.00049589,30]
[358924834,1745545884173,-765.05,0.00049589,30]
[358924835,1745545884226,-1045.74,0.00049589,30]
[358924836,1745545884280,-500.0,0.00049589,30]
[358924837,1745545884332,-520.26,0.00049589,30]
[358924838,1745545884383,-500.0,0.00049589,30]
[358924839,1745545884435,-500.0,0.00049589,30]
[358924840,1745545884488,-500.0,0.00049589,30]
[358924841,1745545884541,-682.45,0.00049589,30]
[358924842,1745545884594,-1909.5,0.00049589,30]
[358924843,1745545884646,-574.53,0.00049589,30]
[358924844,1745545884700,-695.21,0.00049589,30]
[358924845,1745545884754,-500.0,0.00049589,30]
[358924846,1745545884808,-500.0,0.00049589,30]
[358924847,1745545884861,-595.07,0.00049589,30]
[358924848,1745545884914,-2006.28,0.00049589,30]
[358924849,1745545884968,-1703.57,0.00049589,30]
[358924850,1745545885022,-696.79,0.00049589,30]
[358924851,1745545885074,-536.68,0.00049589,30]
[358924852,1745545885130,-671.65,0.00049589,30]
[358924853,1745545885184,-661.83,0.00049589,30]
[358924854,1745545885237,-990.25,0.00049589,30]
[358924855,1745545885289,-452.55917888,0.00049589,30]
[358924856,1745545885342,-1139.46,0.00049589,30]
[358924857,1745545885394,-1291.84,0.00049589,30]
[358924858,1745545885459,-1491.54,0.00049589,30]
[358924859,1745545885512,-500.0,0.00049589,30]
[358924860,1745545885564,-500.0,0.00049589,30]
[358924861,1745545885614,-500.0,0.00049589,30]
[358924862,1745545885664,-1377.9,0.00049589,30]
[358924863,1745545885717,-1021.1,0.00049589,30]
[358924864,1745545885770,-500.0,0.00049589,30]
[358924865,1745545885822,-378.73787577,0.00049589,30]
[358924866,1745545885874,-944.01,0.00049589,30]
[358924867,1745545885925,-1148.56,0.00049589,30]
[358924868,1745545885976,-1758.33,0.00049589,30]
[358924869,1745545886028,-1342.47,0.00049589,30]
[358924870,1745545886078,-500.0,0.00049589,30]
[358924871,1745545886133,-780.33,0.00049589,30]
[358924872,1745545886185,-500.0,0.00049589,30]
[358924873,1745545886239,-576.95,0.00049863,30]
[358924874,1745545886492,-500.0,0.00049863,30]
[358924875,1745545886544,-500.0,0.00049863,30]
[358924876,1745545886594,-500.0,0.00049863,30]
[358924877,1745545886646,-500.0,0.00049863,30]
[358924878,1745545886701,-500.0,0.00049863,30]
[358924879,1745545886752,-151.0,0.00049863,120]
[358924880,1745545886803,-982.6,0.00049863,30]
[358924881,1745545886854,-730.82,0.00049863,30]
[358924882,1745545886906,-151.0,0.00049863,120]
[358924883,1745545886960,-1137.61,0.00049863,30]
[358924884,1745545887011,-500.0,0.00049863,30]
[358924885,1745545887060,-1311.98,0.00049863,30]
[358924886,1745545887111,-500.0,0.00049863,30]
[358924887,1745545887168,-500.0,0.00049863,30]
[358924888,1745545887219,-500.0,0.00049863,30]
[358924889,1745545887269,-500.0,0.00049863,30]
[358924890,1745545887319,-500.0,0.00049863,30]
[358924891,1745545887370,-1055.72,0.00049863,30]
[358924892,1745545887423,-500.0,0.00049863,30]
[358924893,1745545887474,-500.0,0.00049863,30]
[358924894,1745545887525,-500.0,0.00049863,30]
[358924895,1745545887576,-1396.8,0.00049863,30]
[358924896,1745545887626,-503.83,0.00049863,30]
[358924897,1745545887676,-500.0,0.00049863,30]
[358924898,1745545887726,-208.41482622,0.00049863,30]
[358924899,1745545887776,-871.91,0.00049863,30]
[358924900,1745545887825,-500.0,0.00049863,30]
[358924901,1745545887873,-500.0,0.00049863,30]
[358924902,1745545887922,-1269.73,0.00049863,30]
[358924903,1745545887971,-500.0,0.00049863,30]
[358924904,1745545888021,-1618.3,0.00049863,30]
[358924905,1745545888075,-500.0,0.00049863,30]
[358924906,1745545888125,-1638.07,0.00049863,30]
[358924907,1745545888179,-703.28,0.00049863,30]
[358924908,1745545888230,-1425.46,0.00049863,30]
[358924909,1745545888280,-638.66,0.00049863,30]
[358924910,1745545888332,-1729.94,0.00049863,30]
[358924911,1745545888381,-500.0,0.00049863,30]
[358924912,1745545888435,-500.0,0.00049863,30]
[358924913,1745545888491,-561.61,0.00049863,30]
[358924914,1745545888545,-950.46,0.00049863,30]
[358924915,1745545888598,-500.0,0.00049863,30]
[358924916,1745545888651,-1212.18,0.00049863,30]
[358924917,1745545888704,-1343.3,0.00049863,30]
[358924918,1745545888757,-571.58,0.00049863,30]
[358924919,1745545888808,-855.98,0.00049863,30]
[358924920,1745545888861,-2120.78,0.00049863,30]
[358924921,1745545888912,-603.73,0.00049863,30]
[358924922,1745545888963,-500.0,0.00049863,30]
[358924923,1745545889015,-500.0,0.00049863,30]
[358924924,1745545889068,-1895.22,0.00049863,30]
[358924925,1745545889120,-500.0,0.00049863,30]
[358924926,1745545889174,-1806.09,0.00049863,30]
[358924927,1745545889226,-500.0,0.00049863,30]
[358924928,1745545889278,-530.66,0.00049863,30]
[358924929,1745545889332,-500.0,0.00049863,30]
[358924930,1745545889385,-1185.38,0.00049863,30]
[358924931,1745545889441,-500.0,0.00049863,30]
[358924932,1745545889497,-4344.84,0.00049863,30]
[358924933,1745545889548,-151.0,0.00049863,120]
[358924934,1745545889599,-389.46541457,0.00049863,30]
[358924935,1745545889652,-1235.46,0.00049863,30]
[358924936,1745545889704,-500.0,0.00049863,30]
[358924937,1745545889757,-500.0,0.00049863,30]
[358924938,1745545889810,-718.37,0.00049863,30]
[358924939,1745545889862,-681.27,0.00049863,30]
[358924940,1745545889914,-547.91,0.00049863,30]
[358924941,1745545889967,-1064.4,0.00049863,30]
[358924942,1745545890018,-536.61,0.00049863,30]
[358924943,1745545890070,-300.0,0.00049863,30]
[358924944,1745545890122,-959.99,0.00049863,30]
[358924945,1745545890174,-956.25,0.00049863,30]
[358924946,1745545890229,-606.43,0.00049863,30]
[358924947,1745545890280,-4110.61,0.00049863,30]
[358924948,1745545890334,-755.51,0.00049863,30]
[358924949,1745545890384,-500.0,0.00049863,30]
[358924950,1745545890437,-1699.47,0.00049863,30]
[358924951,1745545890488,-751.49,0.00049863,30]
[358924952,1745545890542,-557.16,0.00049863,30]
[358924953,1745545890595,-500.0,0.00049863,30]
[358924954,1745545890646,-2518.36,0.00049863,30]
[358924955,1745545890698,-1672.29,0.00049863,30]
[358924956,1745545890752,-257.001103,0.00049863,120]
[358924957,1745545890803,-500.0,0.00049863,30]
[358924958,1745545890857,-151.0,0.00049863,120]
[358924959,1745545890909,-1749.57,0.00049863,30]
[358924960,1745545890962,-500.0,0.00049863,30]
[358924961,1745545891015,-637.35,0.00049863,30]
[358924962,1745545891069,-500.0,0.00049863,30]
[358924963,1745545891123,-500.0,0.00049863,30]
[358924964,1745545891178,-1031.46,0.00049863,30]
[358924965,1745545891231,-1886.1,0.00049863,30]
[358924966,1745545891283,-1188.42,0.00049863,30]
[358924967,1745545891334,-151.0,0.00049863,120]
[358924968,1745545891382,-500.0,0.00049863,30]
[358924969,1745545891432,-565.55,0.00049863,30]
[358924970,1745545891483,-1760.17,0.00049863,30]
[358924971,1745545891532,-500.0,0.00049863,30]
[358924972,1745545891584,-151.0,0.00049863,120]
[358924973,1745545891633,-500.0,0.00049863,30]
[358924974,1745545891682,-583.6,0.00049863,30]
[358924975,1745545891731,-1331.75,0.00049863,30]
[358924976,1745545891781,-259.7,0.00049863,30]
[358924977,1745545891831,-1291.79,0.00049863,30]
[358924978,1745545892044,-253.52164167,0.00049863,30]
[358924979,1745545892101,-1098.22,0.00049863,30]
[358924980,1745545892153,-7163.15,0.00049863,30]
[358924981,1745545892209,-887.54,0.00049863,30]
[358924982,1745545892262,-1248.48,0.00049863,30]
[358924983,1745545892315,-500.0,0.00049863,30]
[358924984,1745545892368,-1651.06,0.00049863,30]
[358924985,1745545892422,-508.52,0.00049863,30]
[358924986,1745545892476,-2239.84,0.00049863,30]
[358924987,1745545892530,-864.33,0.00049863,30]
[358924988,1745545892582,-505.78,0.00049863,30]
[358924989,1745545892630,-632.89,0.00049863,30]
[358924990,1745545892680,-1001.68,0.00049863,30]
[358924991,1745545892730,-500.0,0.00049863,30]
[358924992,1745545892780,-1483.77,0.00049863,30]
[358924993,1745545892830,-500.0,0.00049863,30]
[358924994,1745545892880,-1236.74,0.00049863,30]
[358924995,1745545892931,-547.04,0.00049863,30]
[358924996,1745545892981,-500.0,0.00049863,30]
[358924997,1745545893032,-500.0,0.00049863,30]
[358924998,1745545893083,-500.0,0.00049863,120]
[358924999,1745545893140,-551.27,0.00049863,30]
[358925000,1745545893193,-782.79,0.00049863,30]
[358925001,1745545893244,-500.0,0.00049863,30]
[358925002,1745545893296,-500.0,0.00049863,30]
[358925003,1745545893349,-151.0,0.00049863,120]
[358925004,1745545893401,-500.0,0.00049863,30]
[358925005,1745545893456,-500.0,0.00049863,30]
[358925006,1745545893509,-1416.53,0.00049863,30]
[358925007,1745545893563,-500.0,0.00049863,30]
[358925008,1745545893618,-894.51,0.00049863,30]
[358925009,1745545893673,-500.0,0.00049863,30]
[358925010,1745545893729,-151.0,0.00049863,120]
[358925011,1745545893784,-151.0,0.00049863,120]
[358925012,1745545893840,-500.0,0.00049863,30]
[358925013,1745545893895,-1380.06,0.00049863,30]
[358925014,1745545893948,-500.0,0.00049863,30]
[358925015,1745545894001,-1109.29,0.00049863,30]
[358925016,1745545894052,-982.48,0.00049863,30]
[358925017,1745545894106,-1800.8,0.00049863,30]
[358925018,1745545894158,-612.25,0.00049863,30]
[358925019,1745545894214,-884.99,0.00049863,30]
[358925020,1745545894265,-665.85,0.00049863,30]
[358925021,1745545894317,-695.17,0.00049863,30]
[358925022,1745545894370,-1088.74,0.00049863,30]
[358925023,1745545894422,-734.7,0.00049863,30]
[358925024,1745545894475,-1916.97,0.00049863,30]
[358925025,1745545894528,-596.84,0.00049863,30]
[358925026,1745545894582,-509.35,0.00049863,30]
[358925027,1745545894635,-500.0,0.00049863,30]
[358925028,1745545894688,-334.587422,0.00049863,120]
[358925029,1745545894742,-2215.94,0.00049863,30]
[358925030,1745545894795,-556.38,0.00049863,30]
[358925031,1745545894849,-500.0,0.00049863,30]
[358925032,1745545894902,-697.76,0.00049863,30]
[358925033,1745545894956,-4287.81,0.00049863,30]
[358925034,1745545895010,-334.587422,0.00049863,120]
[358925035,1745545895063,-682.59,0.00049863,30]
[358925036,1745545895117,-737.75,0.00049863,30]
[358925037,1745545895171,-175.498221,0.00049863,60]
[358925038,1745545895224,-515.03,0.00049863,30]
[358925039,1745545895278,-765.05,0.00049863,30]
[358925040,1745545895332,-1045.74,0.00049863,30]
[358925041,1745545895385,-500.0,0.00049863,30]
[358925042,1745545895440,-175.498221,0.00049863,60]
[358925043,1745545895492,-520.26,0.00049863,30]
[358925044,1745545895545,-500.0,0.00049863,30]
[358925045,1745545895598,-500.0,0.00049863,30]
[358925046,1745545895648,-500.0,0.00049863,30]
[358925047,1745545895700,-682.45,0.00049863,30]
[358925048,1745545895751,-1909.5,0.00049863,30]
[358925049,1745545895804,-574.53,0.00049863,30]
[358925050,1745545895858,-695.21,0.00049863,30]
[358925051,1745545895910,-500.0,0.00049863,30]
[358925052,1745545895963,-500.0,0.00049863,30]
[358925053,1745545896015,-595.07,0.00049863,30]
[358925054,1745545896067,-2006.28,0.00049863,30]
[358925055,1745545896119,-171.668115,0.00049863,120]
[358925056,1745545896172,-1703.57,0.00049863,30]
[358925057,1745545896226,-696.79,0.00049863,30]
[358925058,1745545896280,-536.68,0.00049863,30]
[358925059,1745545896333,-171.668115,0.00049863,120]
[358925060,1745545896385,-661.83,0.00049863,30]
[358925061,1745545896437,-671.65,0.00049863,30]
[358925062,1745545896490,-990.25,0.00049863,30]
[358925063,1745545896541,-1139.46,0.00049863,30]
[358925064,1745545896596,-1291.84,0.00049863,30]
[358925065,1745545896649,-1491.54,0.00049863,30]
[358925066,1745545896699,-500.0,0.00049863,30]
[358925067,1745545896749,-151.0,0.00049863,120]
[358925068,1745545896800,-175.60171241,0.00049863,30]
[358925069,1745545896850,-321.95103382,0.00049863,30]
[358925070,1745545896900,-1377.9,0.00049863,30]
[358925071,1745545896951,-1021.1,0.00049863,30]
[358925072,1745545897001,-500.0,0.00049863,30]
[358925073,1745545897053,-944.01,0.00049863,30]
[358925074,1745545897104,-1148.56,0.00049863,30]
[358925075,1745545897154,-1758.33,0.00049863,30]
[358925076,1745545897205,-1342.47,0.00049863,30]
[358925077,1745545897256,-500.0,0.00049863,30]
[358925078,1745545897307,-151.0,0.00049863,120]
[358925079,1745545897363,-780.33,0.00049863,30]
[358925080,1745545897416,-888.32,0.0004987,120]
[358925081,1745545897471,-396.0,0.00049897,120]
[358925082,1745545897524,-200.0,0.0005,91]
[358925083,1745545897768,-1000.0,0.0005,30]
[358925084,1745545897825,-286.0,0.00050066,120]
[358925085,1745545897880,-576.95,0.00050136,30]
[358925086,1745545897933,-500.0,0.00050136,30]
[358925087,1745545897985,-500.0,0.00050136,30]
[358925088,1745545898053,-500.0,0.00050136,30]
[358925089,1745545898105,-500.0,0.00050136,30]
[358925090,1745545898156,-500.0,0.00050136,30]
[358925091,1745545898214,-151.0,0.00050136,120]
[358925092,1745545898269,-982.6,0.00050136,30]
[358925093,1745545898321,-730.82,0.00050136,30]
[358925094,1745545898373,-151.0,0.00050136,120]
[358925095,1745545898428,-1137.61,0.00050136,30]
[358925096,1745545898482,-500.0,0.00050136,30]
[358925097,1745545898535,-500.0,0.00050136,30]
[358925098,1745545898589,-1311.98,0.00050136,30]
[358925099,1745545898643,-500.0,0.00050136,30]
[358925100,1745545898698,-500.0,0.00050136,30]
[358925101,1745545898752,-500.0,0.00050136,30]
[358925102,1745545898806,-500.0,0.00050136,30]
[358925103,1745545898858,-1055.72,0.00050136,30]
[358925104,1745545898910,-500.0,0.00050136,30]
[358925105,1745545898963,-500.0,0.00050136,30]
[358925106,1745545899021,-500.0,0.00050136,30]
[358925107,1745545899074,-1396.8,0.00050136,30]
[358925108,1745545899125,-503.83,0.00050136,30]
[358925109,1745545899176,-500.0,0.00050136,30]
[358925110,1745545899228,-871.91,0.00050136,30]
[358925111,1745545899280,-347.9906782,0.00050136,30]
[358925112,1745545899332,-500.0,0.00050136,30]
[358925113,1745545899387,-1269.73,0.00050136,30]
[358925114,1745545899439,-500.0,0.00050136,30]
[358925115,1745545899495,-1618.3,0.00050136,30]
[358925116,1745545899546,-500.0,0.00050136,30]
[358925117,1745545899597,-1638.07,0.00050136,30]
[358925118,1745545899647,-703.28,0.00050136,30]
[358925119,1745545899696,-1425.46,0.00050136,30]
[358925120,1745545899746,-638.66,0.00050136,30]
[358925121,1745545899796,-1729.94,0.00050136,30]
[358925122,1745545899847,-500.0,0.00050136,30]
[358925123,1745545899898,-500.0,0.00050136,30]
[358925124,1745545899950,-561.61,0.00050136,30]
[358925125,1745545900008,-950.46,0.00050136,30]
[358925126,1745545900061,-500.0,0.00050136,30]
[358925127,1745545900114,-1212.18,0.00050136,30]
[358925128,1745545900168,-1343.3,0.00050136,30]
[358925129,1745545900222,-571.58,0.00050136,30]
[358925130,1745545900275,-855.98,0.00050136,30]
[358925131,1745545900326,-2120.78,0.00050136,30]
[358925132,1745545900378,-603.73,0.00050136,30]
[358925133,1745545900431,-277.21457577,0.00050136,30]
[358925134,1745545900485,-500.0,0.00050136,30]
[358925135,1745545900537,-1895.22,0.00050136,30]
[358925136,1745545900592,-500.0,0.00050136,30]
[358925137,1745545900647,-1806.09,0.00050136,30]
[358925138,1745545900701,-500.0,0.00050136,30]
[358925139,1745545900752,-530.66,0.00050136,30]
[358925140,1745545900805,-500.0,0.00050136,30]
[358925141,1745545900857,-1185.38,0.00050136,30]
[358925142,1745545900909,-500.0,0.00050136,30]
[358925143,1745545900963,-4344.84,0.00050136,30]
[358925144,1745545901021,-1235.46,0.00050136,30]
[358925145,1745545901075,-500.0,0.00050136,30]
[358925146,1745545901127,-500.0,0.00050136,30]
[358925147,1745545901180,-718.37,0.00050136,30]
[358925148,1745545901232,-681.27,0.00050136,30]
[358925149,1745545901286,-547.91,0.00050136,30]
[358925150,1745545901336,-1064.4,0.00050136,30]
[358925151,1745545901386,-536.61,0.00050136,30]
[358925152,1745545901440,-959.99,0.00050136,30]
[358925153,1745545901492,-184.26396858,0.00050136,30]
[358925154,1745545901541,-956.25,0.00050136,30]
[358925155,1745545901592,-606.43,0.00050136,30]
[358925156,1745545901645,-4110.61,0.00050136,30]
[358925157,1745545901700,-755.51,0.00050136,30]
[358925158,1745545901754,-500.0,0.00050136,30]
[358925159,1745545901808,-1699.47,0.00050136,30]
[358925160,1745545901863,-751.49,0.00050136,30]
[358925161,1745545901917,-557.16,0.00050136,30]
[358925162,1745545901969,-500.0,0.00050136,30]
[358925163,1745545902022,-2518.36,0.00050136,30]
[358925164,1745545902088,-1672.29,0.00050136,30]
[358925165,1745545902147,-500.0,0.00050136,30]
[358925166,1745545902200,-1749.57,0.00050136,30]
[358925167,1745545902255,-500.0,0.00050136,30]
[358925168,1745545902311,-637.35,0.00050136,30]
[358925169,1745545902366,-500.0,0.00050136,30]
[358925170,1745545902421,-500.0,0.00050136,30]
[358925171,1745545902476,-1031.46,0.00050136,30]
[358925172,1745545902532,-1886.1,0.00050136,30]
[358925173,1745545902587,-1188.42,0.00050136,30]
[358925174,1745545902640,-500.0,0.00050136,30]
[358925175,1745545902694,-565.55,0.00050136,30]
[358925176,1745545902747,-1760.17,0.00050136,30]